[Event "Titled Tuesday Blitz May 03 Early 2022"]
[White "Zanette, Edgard Vinicius"]
[Black "Zia, Tahsin Tajwar"]
[WhiteFideId "2109263"]
[BlackFideId "10211888"]
[WhiteElo "2182"]
[BlackElo "1800"]
[Result "0-1"]
[Round "05"]
[TimeControl "180+1"]
[Date "2022.05.03"]
[WhiteClock "0:00:06"]
[BlackClock "0:00:30"]

1. e4 {[%clk 0:03:00]}  c5 {[%clk 0:02:59]} 2. Nc3 {[%clk 0:02:59]}  Nc6 {[%clk 0:02:58]} 3. g3 {[%clk 0:02:58]}  g6 {[%clk 0:02:56]} 4. Bg2 {[%clk 0:02:58]}  Bg7 {[%clk 0:02:56]} 5. d3 {[%clk 0:02:58]}  d6 {[%clk 0:02:53]} 6. f4 {[%clk 0:02:58]}  e6 {[%clk 0:02:52]} 7. Nf3 {[%clk 0:02:56]}  Nge7 {[%clk 0:02:52]} 8. O-O {[%clk 0:02:56]}  Nd4 {[%clk 0:02:49]} 9. Be3 {[%clk 0:02:54]}  O-O {[%clk 0:02:48]} 10. e5 {[%clk 0:02:52]}  Nef5 {[%clk 0:02:43]} 11. Bf2 {[%clk 0:02:51]}  dxe5 {[%clk 0:02:28]} 12. fxe5 {[%clk 0:02:49]}  Qc7 {[%clk 0:02:28]} 13. Ne4 {[%clk 0:02:39]}  Nxf3+ {[%clk 0:02:21]} 14. Qxf3 {[%clk 0:02:36]}  Qxe5 {[%clk 0:02:10]} 15. Bxc5 {[%clk 0:02:28]}  Rd8 {[%clk 0:02:00]} 16. c3 {[%clk 0:02:26]}  b6 {[%clk 0:01:49]} 17. d4 {[%clk 0:02:01]}  Qc7 {[%clk 0:01:44]} 18. Ba3 {[%clk 0:01:50]}  Bb7 {[%clk 0:01:43]} 19. Nf6+ {[%clk 0:01:43]}  Bxf6 {[%clk 0:01:42]} 20. Qxb7 {[%clk 0:01:43]}  Qxb7 {[%clk 0:01:41]} 21. Bxb7 {[%clk 0:01:44]}  Rab8 {[%clk 0:01:42]} 22. Be4 {[%clk 0:01:38]}  h5 {[%clk 0:01:40]} 23. h3 {[%clk 0:01:31]}  Bg5 {[%clk 0:01:39]} 24. Bxf5 {[%clk 0:01:29]}  gxf5 {[%clk 0:01:37]} 25. Rae1 {[%clk 0:01:26]}  Kg7 {[%clk 0:01:33]} 26. Kg2 {[%clk 0:01:20]}  Bf6 {[%clk 0:01:29]} 27. Re2 {[%clk 0:01:16]}  Kh7 {[%clk 0:01:29]} 28. Kf3 {[%clk 0:01:15]}  a5 {[%clk 0:01:22]} 29. Rh1 {[%clk 0:01:02]}  b5 {[%clk 0:01:18]} 30. Bc5 {[%clk 0:01:00]}  b4 {[%clk 0:01:16]} 31. g4 {[%clk 0:00:59]}  Kg6 {[%clk 0:01:13]} 32. Rg2 {[%clk 0:00:49]}  hxg4+ {[%clk 0:01:04]} 33. hxg4 {[%clk 0:00:49]}  Rh8 {[%clk 0:01:04]} 34. Rxh8 {[%clk 0:00:43]}  Rxh8 {[%clk 0:01:03]} 35. g5 {[%clk 0:00:28]}  Rh3+ {[%clk 0:00:59]} 36. Rg3 {[%clk 0:00:20]}  Rxg3+ {[%clk 0:00:55]} 37. Kxg3 {[%clk 0:00:21]}  Kxg5 {[%clk 0:00:55]} 38. cxb4 {[%clk 0:00:21]}  axb4 {[%clk 0:00:54]} 39. a4 {[%clk 0:00:20]}  bxa3 {[%clk 0:00:54]} 40. bxa3 {[%clk 0:00:20]}  Bd8 {[%clk 0:00:51]} 41. Bb4 {[%clk 0:00:19]}  Bc7+ {[%clk 0:00:46]} 42. Kf3 {[%clk 0:00:19]}  f6 {[%clk 0:00:42]} 43. a4 {[%clk 0:00:19]}  e5 {[%clk 0:00:41]} 44. d5 {[%clk 0:00:16]}  e4+ {[%clk 0:00:40]} 45. Ke2 {[%clk 0:00:15]}  f4 {[%clk 0:00:38]} 46. d6 {[%clk 0:00:15]}  f3+ {[%clk 0:00:34]} 47. Kf2 {[%clk 0:00:13]}  Bb6+ {[%clk 0:00:32]} 48. Kg3 {[%clk 0:00:13]}  f2 {[%clk 0:00:30]} 49. Kg2 {[%clk 0:00:13]}  e3 {[%clk 0:00:31]} 50. a5 {[%clk 0:00:11]}  e2 {[%clk 0:00:30]} 51. Bd2+ {[%clk 0:00:09]}  Kg4 {[%clk 0:00:29]} 52. axb6 {[%clk 0:00:06]}  f1=Q+ {[%clk 0:00:30]} 0-1


[Site "https://www.chess.com"]

[Event "Titled Tuesday Blitz May 03 Early 2022"]
[White "Agasarov, Benik"]
[Black "Sailer, Mike"]
[WhiteFideId "13314823"]
[BlackFideId "2012901"]
[WhiteElo "2520"]
[BlackElo "2109"]
[Result "1-0"]
[Round "06"]
[TimeControl "180+1"]
[Date "2022.05.03"]
[WhiteClock "0:01:39"]
[BlackClock "0:01:05"]

1. e4 {[%clk 0:03:00]}  d5 {[%clk 0:02:59]} 2. exd5 {[%clk 0:03:00]}  Qxd5 {[%clk 0:03:00]} 3. Nc3 {[%clk 0:03:00]}  Qd6 {[%clk 0:03:00]} 4. Nf3 {[%clk 0:02:59]}  Nf6 {[%clk 0:03:01]} 5. d4 {[%clk 0:02:59]}  c6 {[%clk 0:03:01]} 6. Ne5 {[%clk 0:03:00]}  Nbd7 {[%clk 0:02:57]} 7. Nc4 {[%clk 0:02:58]}  Qc7 {[%clk 0:02:56]} 8. Qf3 {[%clk 0:02:58]}  Nb6 {[%clk 0:02:53]} 9. Bf4 {[%clk 0:02:57]}  Qd8 {[%clk 0:02:53]} 10. Be5 {[%clk 0:02:55]}  Be6 {[%clk 0:02:38]} 11. Na5 {[%clk 0:02:47]}  Qc8 {[%clk 0:02:30]} 12. h3 {[%clk 0:02:22]}  Nbd5 {[%clk 0:02:12]} 13. O-O-O {[%clk 0:02:09]}  Nxc3 {[%clk 0:02:07]} 14. Qxc3 {[%clk 0:02:07]}  Nd5 {[%clk 0:02:02]} 15. Qf3 {[%clk 0:01:58]}  f6 {[%clk 0:01:55]} 16. Bh2 {[%clk 0:01:54]}  g6 {[%clk 0:01:54]} 17. Bc4 {[%clk 0:01:53]}  Bh6+ {[%clk 0:01:42]} 18. Kb1 {[%clk 0:01:52]}  O-O {[%clk 0:01:35]} 19. Rhe1 {[%clk 0:01:50]}  b6 {[%clk 0:01:25]} 20. Rxe6 {[%clk 0:01:41]}  Qxe6 {[%clk 0:01:20]} 21. Nxc6 {[%clk 0:01:41]}  Nc3+ {[%clk 0:01:05]} 22. Qxc3 {[%clk 0:01:39]} 1-0


[Site "https://www.chess.com"]

[Event "Titled Tuesday Blitz May 03 Early 2022"]
[White "Andreev, Eduard"]
[Black "Manukian, Artak"]
[WhiteFideId "14103400"]
[BlackFideId "13301373"]
[WhiteElo "2382"]
[BlackElo "2370"]
[Result "1/2-1/2"]
[Round "06"]
[TimeControl "180+1"]
[Date "2022.05.03"]
[WhiteClock "0:01:17"]
[BlackClock "0:00:56"]

1. e4 {[%clk 0:03:00]}  c6 {[%clk 0:02:59]} 2. d4 {[%clk 0:02:59]}  d5 {[%clk 0:03:00]} 3. e5 {[%clk 0:03:00]}  Bf5 {[%clk 0:02:59]} 4. Nf3 {[%clk 0:03:00]}  e6 {[%clk 0:02:59]} 5. Bd3 {[%clk 0:02:59]}  Bxd3 {[%clk 0:02:59]} 6. cxd3 {[%clk 0:03:00]}  Nd7 {[%clk 0:02:55]} 7. O-O {[%clk 0:03:00]}  Ne7 {[%clk 0:02:54]} 8. Nc3 {[%clk 0:02:55]}  Nf5 {[%clk 0:02:53]} 9. Be3 {[%clk 0:02:48]}  h5 {[%clk 0:02:52]} 10. Ne2 {[%clk 0:02:47]}  Be7 {[%clk 0:02:47]} 11. Ng3 {[%clk 0:02:46]}  g6 {[%clk 0:02:45]} 12. Nxf5 {[%clk 0:02:45]}  gxf5 {[%clk 0:02:44]} 13. g3 {[%clk 0:02:37]}  h4 {[%clk 0:02:43]} 14. Kg2 {[%clk 0:02:37]}  hxg3 {[%clk 0:02:41]} 15. hxg3 {[%clk 0:02:36]}  Qb6 {[%clk 0:02:41]} 16. Rb1 {[%clk 0:02:35]}  O-O-O {[%clk 0:02:40]} 17. b4 {[%clk 0:02:35]}  Kb8 {[%clk 0:02:10]} 18. a4 {[%clk 0:02:32]}  Rc8 {[%clk 0:02:00]} 19. Qb3 {[%clk 0:02:23]}  Nf8 {[%clk 0:01:47]} 20. Qc3 {[%clk 0:02:20]}  Ng6 {[%clk 0:01:45]} 21. Bg5 {[%clk 0:02:14]}  Qd8 {[%clk 0:01:41]} 22. Bxe7 {[%clk 0:02:12]}  Qxe7 {[%clk 0:01:42]} 23. Rh1 {[%clk 0:02:11]}  f4 {[%clk 0:01:42]} 24. Qc5 {[%clk 0:02:07]}  fxg3 {[%clk 0:01:37]} 25. fxg3 {[%clk 0:02:00]}  Rcg8 {[%clk 0:01:32]} 26. Qxe7 {[%clk 0:01:58]}  Nxe7 {[%clk 0:01:32]} 27. Rxh8 {[%clk 0:01:55]}  Rxh8 {[%clk 0:01:33]} 28. Ng5 {[%clk 0:01:55]}  Nf5 {[%clk 0:01:31]} 29. Nxf7 {[%clk 0:01:50]}  Rg8 {[%clk 0:01:29]} 30. Nd6 {[%clk 0:01:43]}  Nxd4 {[%clk 0:01:18]} 31. Rf1 {[%clk 0:01:39]}  Ne2 {[%clk 0:01:15]} 32. Rf7 {[%clk 0:01:37]}  Nxg3 {[%clk 0:01:15]} 33. Rxb7+ {[%clk 0:01:35]}  Ka8 {[%clk 0:01:15]} 34. Rc7 {[%clk 0:01:34]}  Nf5+ {[%clk 0:01:14]} 35. Kf2 {[%clk 0:01:34]}  Nxd6 {[%clk 0:01:13]} 36. exd6 {[%clk 0:01:33]}  Rd8 {[%clk 0:01:14]} 37. Rxc6 {[%clk 0:01:33]}  Kb7 {[%clk 0:01:14]} 38. b5 {[%clk 0:01:33]}  e5 {[%clk 0:01:12]} 39. Kf3 {[%clk 0:01:32]}  Rf8+ {[%clk 0:01:09]} 40. Kg4 {[%clk 0:01:31]}  e4 {[%clk 0:01:09]} 41. dxe4 {[%clk 0:01:30]}  dxe4 {[%clk 0:01:10]} 42. d7 {[%clk 0:01:27]}  e3 {[%clk 0:01:02]} 43. Re6 {[%clk 0:01:27]}  Rd8 {[%clk 0:01:00]} 44. Kf3 {[%clk 0:01:19]}  Rxd7 {[%clk 0:01:00]} 45. Kxe3 {[%clk 0:01:19]}  Rh7 {[%clk 0:00:59]} 46. Kd4 {[%clk 0:01:17]}  Rh4+ {[%clk 0:00:56]} 47. Re4 {[%clk 0:01:17]}  Rxe4+ {[%clk 0:00:55]} 48. Kxe4 {[%clk 0:01:17]}  Kb6 {[%clk 0:00:55]} 49. Kd5 {[%clk 0:01:16]}  Ka5 {[%clk 0:00:56]} 50. Kc5 {[%clk 0:01:15]}  Kxa4 {[%clk 0:00:56]} 51. b6 {[%clk 0:01:16]}  axb6+ {[%clk 0:00:56]} 52. Kxb6 {[%clk 0:01:17]} 1/2-1/2


[Site "https://www.chess.com"]

[Event "Titled Tuesday Blitz May 03 Early 2022"]
[White "Andreikin, Dmitry"]
[Black "Le, Tuan Minh"]
[WhiteFideId "4158814"]
[BlackFideId "12401153"]
[WhiteElo "2736"]
[BlackElo "2450"]
[Result "0-1"]
[Round "06"]
[TimeControl "180+1"]
[Date "2022.05.03"]
[WhiteClock "0:00:04"]
[BlackClock "0:00:07"]

1. d4 {[%clk 0:03:00]}  Nf6 {[%clk 0:03:00]} 2. c4 {[%clk 0:03:01]}  Nc6 {[%clk 0:03:01]} 3. Nf3 {[%clk 0:03:00]}  e6 {[%clk 0:03:01]} 4. g3 {[%clk 0:03:00]}  Bb4+ {[%clk 0:03:01]} 5. Nbd2 {[%clk 0:02:57]}  d6 {[%clk 0:02:57]} 6. Bg2 {[%clk 0:02:51]}  O-O {[%clk 0:02:57]} 7. a3 {[%clk 0:02:51]}  Bxd2+ {[%clk 0:02:56]} 8. Qxd2 {[%clk 0:02:51]}  a5 {[%clk 0:02:54]} 9. b3 {[%clk 0:02:50]}  Qe7 {[%clk 0:02:52]} 10. Bb2 {[%clk 0:02:49]}  e5 {[%clk 0:02:52]} 11. O-O {[%clk 0:02:41]}  Bg4 {[%clk 0:02:52]} 12. d5 {[%clk 0:02:37]}  Nb8 {[%clk 0:02:50]} 13. h3 {[%clk 0:02:38]}  Bh5 {[%clk 0:02:50]} 14. Nh4 {[%clk 0:02:36]}  Bg6 {[%clk 0:02:50]} 15. Rae1 {[%clk 0:02:31]}  Nbd7 {[%clk 0:02:47]} 16. e4 {[%clk 0:02:31]}  Nc5 {[%clk 0:02:45]} 17. Qc2 {[%clk 0:02:31]}  c6 {[%clk 0:02:38]} 18. f4 {[%clk 0:02:25]}  cxd5 {[%clk 0:02:21]} 19. Nxg6 {[%clk 0:02:17]}  hxg6 {[%clk 0:02:19]} 20. exd5 {[%clk 0:02:17]}  Ncd7 {[%clk 0:02:06]} 21. g4 {[%clk 0:02:08]}  Rfe8 {[%clk 0:01:59]} 22. Qf2 {[%clk 0:02:01]}  Rac8 {[%clk 0:01:52]} 23. a4 {[%clk 0:02:01]}  Qf8 {[%clk 0:01:11]} 24. f5 {[%clk 0:01:47]}  g5 {[%clk 0:01:07]} 25. Qd2 {[%clk 0:01:47]}  Nc5 {[%clk 0:01:04]} 26. Qxg5 {[%clk 0:01:38]}  Nxb3 {[%clk 0:01:04]} 27. Qe3 {[%clk 0:01:34]}  Nd4 {[%clk 0:01:03]} 28. g5 {[%clk 0:01:33]}  Nd7 {[%clk 0:01:03]} 29. Qd3 {[%clk 0:01:22]}  Nc5 {[%clk 0:01:02]} 30. Qd1 {[%clk 0:01:21]}  Nd7 {[%clk 0:00:46]} 31. Qh5 {[%clk 0:01:04]}  Rxc4 {[%clk 0:00:42]} 32. Re4 {[%clk 0:01:04]}  Rec8 {[%clk 0:00:30]} 33. Kh1 {[%clk 0:00:43]}  Nc2 {[%clk 0:00:27]} 34. Bc1 {[%clk 0:00:40]}  Qe8 {[%clk 0:00:22]} 35. Bd2 {[%clk 0:00:31]}  Nb4 {[%clk 0:00:22]} 36. Rfe1 {[%clk 0:00:27]}  Nf8 {[%clk 0:00:17]} 37. Bf1 {[%clk 0:00:23]}  Rxe4 {[%clk 0:00:13]} 38. Rxe4 {[%clk 0:00:24]}  g6 {[%clk 0:00:14]} 39. Qf3 {[%clk 0:00:12]}  Qd7 {[%clk 0:00:10]} 40. Bxb4 {[%clk 0:00:11]}  axb4 {[%clk 0:00:10]} 41. Rxb4 {[%clk 0:00:12]}  gxf5 {[%clk 0:00:10]} 42. Bb5 {[%clk 0:00:11]}  Rc1+ {[%clk 0:00:10]} 43. Kg2 {[%clk 0:00:11]}  Qc7 {[%clk 0:00:10]} 44. Qxf5 {[%clk 0:00:10]}  Ng6 {[%clk 0:00:11]} 45. Be8 {[%clk 0:00:08]}  Kf8 {[%clk 0:00:08]} 46. Bxf7 {[%clk 0:00:04]}  Qxf7 {[%clk 0:00:09]} 47. Qxf7+ {[%clk 0:00:05]}  Kxf7 {[%clk 0:00:10]} 48. Rxb7+ {[%clk 0:00:05]}  Kf8 {[%clk 0:00:07]} 49. a5 {[%clk 0:00:06]}  Ra1 {[%clk 0:00:06]} 50. Rb6 {[%clk 0:00:06]}  e4 {[%clk 0:00:06]} 51. Rxd6 {[%clk 0:00:06]}  Nh4+ {[%clk 0:00:06]} 52. Kf2 {[%clk 0:00:05]}  Ra2+ {[%clk 0:00:06]} 53. Kf1 {[%clk 0:00:04]}  e3 {[%clk 0:00:05]} 54. Re6 {[%clk 0:00:04]}  Rf2+ {[%clk 0:00:05]} 55. Ke1 {[%clk 0:00:03]}  Nf3+ {[%clk 0:00:06]} 56. Kd1 {[%clk 0:00:04]}  Rd2+ {[%clk 0:00:06]} 57. Kc1 {[%clk 0:00:04]}  e2 {[%clk 0:00:07]} 58. d6 {[%clk 0:00:04]}  Rd1+ {[%clk 0:00:06]} 59. Kb2 {[%clk 0:00:04]}  e1=Q {[%clk 0:00:05]} 60. Rxe1 {[%clk 0:00:05]}  Nxe1 {[%clk 0:00:06]} 61. a6 {[%clk 0:00:03]}  Rxd6 {[%clk 0:00:06]} 62. a7 {[%clk 0:00:04]}  Ra6 {[%clk 0:00:07]} 0-1


[Site "https://www.chess.com"]

[Event "Titled Tuesday Blitz May 03 Early 2022"]
[White "Antonio, Jorge Carlos"]
[Black "Shohat, Yotam"]
[WhiteFideId "113190"]
[BlackFideId "2813955"]
[WhiteElo "2247"]
[BlackElo "2119"]
[Result "0-1"]
[Round "06"]
[TimeControl "180+1"]
[Date "2022.05.03"]
[WhiteClock "0:01:05"]
[BlackClock "0:00:04"]

1. d4 {[%clk 0:03:00]}  Nf6 {[%clk 0:02:59]} 2. Nf3 {[%clk 0:03:00]}  g6 {[%clk 0:03:00]} 3. c4 {[%clk 0:03:00]}  Bg7 {[%clk 0:03:00]} 4. Nc3 {[%clk 0:03:00]}  O-O {[%clk 0:03:00]} 5. e4 {[%clk 0:03:00]}  d6 {[%clk 0:03:01]} 6. Be2 {[%clk 0:03:00]}  e5 {[%clk 0:03:01]} 7. O-O {[%clk 0:03:00]}  Nc6 {[%clk 0:03:02]} 8. d5 {[%clk 0:03:01]}  Ne7 {[%clk 0:03:02]} 9. Ne1 {[%clk 0:03:01]}  Nd7 {[%clk 0:03:01]} 10. Be3 {[%clk 0:03:01]}  f5 {[%clk 0:03:01]} 11. f3 {[%clk 0:03:01]}  f4 {[%clk 0:03:02]} 12. Bf2 {[%clk 0:03:02]}  g5 {[%clk 0:03:02]} 13. Rc1 {[%clk 0:03:02]}  Ng6 {[%clk 0:02:55]} 14. c5 {[%clk 0:03:01]}  Nxc5 {[%clk 0:02:52]} 15. b4 {[%clk 0:03:00]}  Na6 {[%clk 0:02:52]} 16. Bxa6 {[%clk 0:02:50]}  bxa6 {[%clk 0:02:52]} 17. b5 {[%clk 0:02:47]}  h5 {[%clk 0:02:50]} 18. bxa6 {[%clk 0:02:45]}  g4 {[%clk 0:02:44]} 19. Nb5 {[%clk 0:02:42]}  Bxa6 {[%clk 0:01:32]} 20. a4 {[%clk 0:02:37]}  Bh6 {[%clk 0:01:09]} 21. Qc2 {[%clk 0:02:20]}  Rf7 {[%clk 0:01:01]} 22. Nd3 {[%clk 0:02:17]}  Rg7 {[%clk 0:00:46]} 23. Nb4 {[%clk 0:02:15]}  Bxb5 {[%clk 0:00:41]} 24. axb5 {[%clk 0:02:15]}  gxf3 {[%clk 0:00:40]} 25. gxf3 {[%clk 0:02:14]}  Nh4+ {[%clk 0:00:37]} 26. Kh1 {[%clk 0:02:08]}  Nxf3 {[%clk 0:00:36]} 27. Na6 {[%clk 0:01:54]}  Qg5 {[%clk 0:00:34]} 28. Rg1 {[%clk 0:01:45]}  Nxg1 {[%clk 0:00:30]} 29. Rxg1 {[%clk 0:01:44]}  Qf6 {[%clk 0:00:25]} 30. Rxg7+ {[%clk 0:01:42]}  Qxg7 {[%clk 0:00:26]} 31. Qxc7 {[%clk 0:01:42]}  f3 {[%clk 0:00:14]} 32. Qxg7+ {[%clk 0:01:36]}  Kxg7 {[%clk 0:00:15]} 33. Nc7 {[%clk 0:01:32]}  Rc8 {[%clk 0:00:12]} 34. Ne6+ {[%clk 0:01:31]}  Kf7 {[%clk 0:00:10]} 35. h4 {[%clk 0:01:24]}  Rc1+ {[%clk 0:00:10]} 36. Kh2 {[%clk 0:01:24]}  Rb1 {[%clk 0:00:05]} 37. Kg3 {[%clk 0:01:23]}  Rxb5 {[%clk 0:00:04]} 38. Bxa7 {[%clk 0:01:20]}  Rb3 {[%clk 0:00:04]} 39. Bf2 {[%clk 0:01:17]}  Re3 {[%clk 0:00:03]} 40. Nd8+ {[%clk 0:01:16]}  Ke7 {[%clk 0:00:03]} 41. Ne6 {[%clk 0:01:15]}  Rxe4 {[%clk 0:00:03]} 42. Kxf3 {[%clk 0:01:14]}  Rg4 {[%clk 0:00:03]} 43. Nc7 {[%clk 0:01:09]}  Bg7 {[%clk 0:00:03]} 44. Ne6 {[%clk 0:01:08]}  Bf6 {[%clk 0:00:03]} 45. Nc7 {[%clk 0:01:07]}  Bxh4 {[%clk 0:00:03]} 46. Nb5 {[%clk 0:01:06]}  Rf4+ {[%clk 0:00:03]} 47. Ke3 {[%clk 0:01:05]}  Bxf2+ {[%clk 0:00:04]} 0-1


[Site "https://www.chess.com"]

[Event "Titled Tuesday Blitz May 03 Early 2022"]
[White "Arabidze, Meri"]
[Black "Bas Mas, Jose Joaquin"]
[WhiteFideId "13604040"]
[BlackFideId "22219064"]
[WhiteElo "2335"]
[BlackElo "2212"]
[Result "1-0"]
[Round "06"]
[TimeControl "180+1"]
[Date "2022.05.03"]
[WhiteClock "0:01:06"]
[BlackClock "0:00:06"]

1. Nf3 {[%clk 0:02:58]}  e6 {[%clk 0:02:59]} 2. g3 {[%clk 0:02:58]}  f5 {[%clk 0:02:59]} 3. Bg2 {[%clk 0:02:59]}  Nf6 {[%clk 0:03:00]} 4. O-O {[%clk 0:02:59]}  Be7 {[%clk 0:03:00]} 5. d3 {[%clk 0:03:00]}  O-O {[%clk 0:03:01]} 6. c4 {[%clk 0:03:00]}  c5 {[%clk 0:03:00]} 7. Nc3 {[%clk 0:02:59]}  d5 {[%clk 0:02:58]} 8. cxd5 {[%clk 0:02:57]}  exd5 {[%clk 0:02:58]} 9. d4 {[%clk 0:02:57]}  c4 {[%clk 0:02:50]} 10. Ne5 {[%clk 0:02:56]}  Nc6 {[%clk 0:02:49]} 11. Bf4 {[%clk 0:02:49]}  Be6 {[%clk 0:02:40]} 12. b3 {[%clk 0:02:47]}  Bb4 {[%clk 0:02:32]} 13. Rc1 {[%clk 0:02:46]}  Bxc3 {[%clk 0:02:20]} 14. Rxc3 {[%clk 0:02:45]}  Ne4 {[%clk 0:02:20]} 15. Rc1 {[%clk 0:02:42]}  Rc8 {[%clk 0:02:09]} 16. bxc4 {[%clk 0:02:39]}  dxc4 {[%clk 0:02:09]} 17. Nxc6 {[%clk 0:02:27]}  Rxc6 {[%clk 0:01:58]} 18. f3 {[%clk 0:02:28]}  Nf6 {[%clk 0:01:51]} 19. e4 {[%clk 0:02:29]}  Ra6 {[%clk 0:01:43]} 20. d5 {[%clk 0:02:28]}  Bf7 {[%clk 0:01:36]} 21. Rxc4 {[%clk 0:02:21]}  Rxa2 {[%clk 0:01:29]} 22. Qb3 {[%clk 0:02:19]}  Qb6+ {[%clk 0:01:05]} 23. Qxb6 {[%clk 0:02:18]}  axb6 {[%clk 0:01:06]} 24. Rb1 {[%clk 0:02:14]}  Nd7 {[%clk 0:00:58]} 25. Rc7 {[%clk 0:02:08]}  Nc5 {[%clk 0:00:50]} 26. Rxb6 {[%clk 0:01:59]}  Ra1+ {[%clk 0:00:43]} 27. Bf1 {[%clk 0:01:59]}  fxe4 {[%clk 0:00:41]} 28. Rxc5 {[%clk 0:01:57]}  exf3 {[%clk 0:00:36]} 29. Rxb7 {[%clk 0:01:53]}  Bg6 {[%clk 0:00:30]} 30. Rc3 {[%clk 0:01:45]}  Be4 {[%clk 0:00:26]} 31. Rb8 {[%clk 0:01:34]}  Rxb8 {[%clk 0:00:20]} 32. Bxb8 {[%clk 0:01:35]}  Ra2 {[%clk 0:00:20]} 33. Rc8+ {[%clk 0:01:19]}  Kf7 {[%clk 0:00:20]} 34. Rc7+ {[%clk 0:01:20]}  Kg6 {[%clk 0:00:16]} 35. Ba7 {[%clk 0:01:21]}  Bxd5 {[%clk 0:00:14]} 36. Bd4 {[%clk 0:01:16]}  Rd2 {[%clk 0:00:12]} 37. Be3 {[%clk 0:01:13]}  Rd1 {[%clk 0:00:12]} 38. Kf2 {[%clk 0:01:12]}  Rb1 {[%clk 0:00:09]} 39. g4 {[%clk 0:01:11]}  h5 {[%clk 0:00:09]} 40. gxh5+ {[%clk 0:01:09]}  Kxh5 {[%clk 0:00:09]} 41. Rxg7 {[%clk 0:01:08]}  Rb2+ {[%clk 0:00:09]} 42. Kg3 {[%clk 0:01:09]}  Rb3 {[%clk 0:00:06]} 43. Bf2 {[%clk 0:01:06]}  Kh6 {[%clk 0:00:06]} 44. Rd7 {[%clk 0:01:05]}  Bc6 {[%clk 0:00:06]} 45. Rd6+ {[%clk 0:01:06]} 1-0


[Site "https://www.chess.com"]

[Event "Titled Tuesday Blitz May 03 Early 2022"]
[White "Aradhya, Garg"]
[Black "Krstulovic, Alex"]
[WhiteFideId "25006746"]
[BlackFideId "760056"]
[WhiteElo "2169"]
[BlackElo "2193"]
[Result "1-0"]
[Round "06"]
[TimeControl "180+1"]
[Date "2022.05.03"]
[WhiteClock "0:00:14"]
[BlackClock "0:00:03"]

1. d4 {[%clk 0:02:55]}  Nf6 {[%clk 0:02:48]} 2. Bf4 {[%clk 0:02:54]}  d5 {[%clk 0:02:47]} 3. e3 {[%clk 0:02:53]}  c5 {[%clk 0:02:44]} 4. c3 {[%clk 0:02:52]}  Nc6 {[%clk 0:02:43]} 5. Nd2 {[%clk 0:02:51]}  e6 {[%clk 0:02:39]} 6. Bb5 {[%clk 0:02:46]}  Qb6 {[%clk 0:02:38]} 7. a4 {[%clk 0:01:51]}  a6 {[%clk 0:02:34]} 8. Bxc6+ {[%clk 0:01:51]}  bxc6 {[%clk 0:02:34]} 9. Rb1 {[%clk 0:01:47]}  cxd4 {[%clk 0:02:16]} 10. exd4 {[%clk 0:01:44]}  c5 {[%clk 0:02:16]} 11. Ngf3 {[%clk 0:01:41]}  Bd7 {[%clk 0:02:15]} 12. O-O {[%clk 0:01:40]}  c4 {[%clk 0:02:14]} 13. Ne5 {[%clk 0:01:40]}  Bd6 {[%clk 0:02:12]} 14. Ndxc4 {[%clk 0:01:39]}  dxc4 {[%clk 0:01:55]} 15. Nxc4 {[%clk 0:01:38]}  Qc6 {[%clk 0:01:55]} 16. Nxd6+ {[%clk 0:01:35]}  Kf8 {[%clk 0:01:55]} 17. a5 {[%clk 0:01:10]}  h5 {[%clk 0:01:43]} 18. c4 {[%clk 0:01:03]}  h4 {[%clk 0:01:28]} 19. h3 {[%clk 0:01:01]}  Rh5 {[%clk 0:01:21]} 20. b4 {[%clk 0:00:56]}  g6 {[%clk 0:00:55]} 21. Re1 {[%clk 0:00:54]}  Ne8 {[%clk 0:00:39]} 22. d5 {[%clk 0:00:42]}  exd5 {[%clk 0:00:35]} 23. b5 {[%clk 0:00:41]}  axb5 {[%clk 0:00:32]} 24. cxb5 {[%clk 0:00:41]}  Qc5 {[%clk 0:00:29]} 25. Ne4 {[%clk 0:00:27]}  dxe4 {[%clk 0:00:24]} 26. Qxd7 {[%clk 0:00:26]}  Rd5 {[%clk 0:00:19]} 27. Be3 {[%clk 0:00:20]}  Qc4 {[%clk 0:00:17]} 28. Qg4 {[%clk 0:00:20]}  Rxa5 {[%clk 0:00:16]} 29. b6 {[%clk 0:00:19]}  Rab5 {[%clk 0:00:16]} 30. Rbc1 {[%clk 0:00:19]}  Qd3 {[%clk 0:00:08]} 31. Bh6+ {[%clk 0:00:19]}  Kg8 {[%clk 0:00:08]} 32. Red1 {[%clk 0:00:19]}  Qb3 {[%clk 0:00:07]} 33. Rxd5 {[%clk 0:00:17]}  Qxd5 {[%clk 0:00:06]} 34. Rc8 {[%clk 0:00:17]}  Qe5 {[%clk 0:00:02]} 35. Bf4 {[%clk 0:00:16]}  Rb1+ {[%clk 0:00:01]} 36. Kh2 {[%clk 0:00:16]}  Qe7 {[%clk 0:00:02]} 37. Qg5 {[%clk 0:00:15]}  f6 {[%clk 0:00:02]} 38. Qxg6+ {[%clk 0:00:15]}  Kh8 {[%clk 0:00:03]} 39. Rxe8+ {[%clk 0:00:14]} 1-0


[Site "https://www.chess.com"]

[Event "Titled Tuesday Blitz May 03 Early 2022"]
[White "Araujo Filho, Luiz Antonio Coel"]
[Black "Murthy, Pappu"]
[WhiteFideId "2130661"]
[BlackFideId "2013401"]
[WhiteElo "2300"]
[BlackElo "2045"]
[Result "1-0"]
[Round "06"]
[TimeControl "180+1"]
[Date "2022.05.03"]
[WhiteClock "0:00:22"]
[BlackClock "0:00:09"]

1. d4 {[%clk 0:03:00]}  Nf6 {[%clk 0:02:57]} 2. Nf3 {[%clk 0:03:00]}  e6 {[%clk 0:02:58]} 3. e3 {[%clk 0:03:00]}  d5 {[%clk 0:02:58]} 4. Bd3 {[%clk 0:03:00]}  c5 {[%clk 0:02:57]} 5. c3 {[%clk 0:02:59]}  Nc6 {[%clk 0:02:57]} 6. Qe2 {[%clk 0:02:56]}  Be7 {[%clk 0:02:58]} 7. Nbd2 {[%clk 0:02:55]}  Qc7 {[%clk 0:02:58]} 8. dxc5 {[%clk 0:02:49]}  Bxc5 {[%clk 0:02:56]} 9. e4 {[%clk 0:02:49]}  dxe4 {[%clk 0:02:55]} 10. Nxe4 {[%clk 0:02:49]}  Nxe4 {[%clk 0:02:55]} 11. Bxe4 {[%clk 0:02:49]}  h6 {[%clk 0:02:52]} 12. O-O {[%clk 0:02:48]}  b6 {[%clk 0:02:51]} 13. Rd1 {[%clk 0:02:35]}  Bb7 {[%clk 0:02:46]} 14. Bc2 {[%clk 0:02:31]}  Ne7 {[%clk 0:02:35]} 15. Ne5 {[%clk 0:02:25]}  Nd5 {[%clk 0:02:10]} 16. c4 {[%clk 0:02:07]}  Nf6 {[%clk 0:02:09]} 17. Bf4 {[%clk 0:02:00]}  Qe7 {[%clk 0:02:03]} 18. Ba4+ {[%clk 0:01:55]}  Kf8 {[%clk 0:01:48]} 19. Nd7+ {[%clk 0:01:52]}  Kg8 {[%clk 0:01:45]} 20. Nxc5 {[%clk 0:01:03]}  Qxc5 {[%clk 0:01:36]} 21. Be5 {[%clk 0:00:59]}  Kh7 {[%clk 0:01:18]} 22. Bxf6 {[%clk 0:00:48]}  gxf6 {[%clk 0:01:18]} 23. Rd7 {[%clk 0:00:49]}  Bc6 {[%clk 0:00:42]} 24. Rxf7+ {[%clk 0:00:23]}  Kg8 {[%clk 0:00:40]} 25. Rxf6 {[%clk 0:00:24]}  Qd6 {[%clk 0:00:09]} 26. Qg4+ {[%clk 0:00:22]} 1-0


[Site "https://www.chess.com"]